[Event "*** SCC Grand Prix: Titled Tuesday Blitz"]
[Site "Chess.com"]
[Date "2020.06.09"]
[Round "5"]
[White "2346PL"]
[Black "IwkooO"]
[Result "1-0"]
[WhiteElo "2419"]
[BlackElo "2576"]
[TimeControl "180+1"]
[EndTime "9:58:54 PDT"]
[Termination "2346PL won by resignation"]

1. d4 {[%clk 0:03:00.9]} 1... Nf6 {[%clk 0:02:58.5]} 2. Bg5 {[%clk 0:03:01.3]}
2... e6 {[%clk 0:02:57.4]} 3. e3 {[%clk 0:02:59.9]} 3... h6 {[%clk 0:02:57]} 4.
Bh4 {[%clk 0:02:59.9]} 4... c5 {[%clk 0:02:26.4]} 5. c3 {[%clk 0:02:59.9]} 5...
b6 {[%clk 0:02:22.3]} 6. Nf3 {[%clk 0:02:58.7]} 6... Bb7 {[%clk 0:02:22]} 7.
Nbd2 {[%clk 0:02:59.2]} 7... Be7 {[%clk 0:02:21.3]} 8. Bd3 {[%clk 0:02:55.6]}
8... d6 {[%clk 0:02:19.1]} 9. Qe2 {[%clk 0:02:54.4]} 9... Nbd7 {[%clk
0:02:17.4]} 10. O-O {[%clk 0:02:51.2]} 10... cxd4 {[%clk 0:01:47.6]} 11. exd4
{[%clk 0:02:49.3]} 11... Nd5 {[%clk 0:01:45.9]} 12. Bg3 {[%clk 0:02:46.3]} 12...
O-O {[%clk 0:01:36.8]} 13. h3 {[%clk 0:02:24.2]} 13... N7f6 {[%clk 0:01:33]} 14.
Rfe1 {[%clk 0:02:16.2]} 14... a6 {[%clk 0:01:31.9]} 15. a4 {[%clk 0:02:14.7]}
15... Qd7 {[%clk 0:01:28.3]} 16. Nc4 {[%clk 0:02:12]} 16... Qc7 {[%clk
0:01:13.2]} 17. Nfd2 {[%clk 0:02:10.2]} 17... b5 {[%clk 0:01:06.4]} 18. Ne3
{[%clk 0:01:58.5]} 18... Nxe3 {[%clk 0:00:59.2]} 19. fxe3 {[%clk 0:01:57.6]}
19... bxa4 {[%clk 0:00:54]} 20. Rxa4 {[%clk 0:01:55.7]} 20... a5 {[%clk
0:00:53.8]} 21. e4 {[%clk 0:01:55]} 21... e5 {[%clk 0:00:49.4]} 22. d5 {[%clk
0:01:45.7]} 22... Nd7 {[%clk 0:00:47.2]} 23. Raa1 {[%clk 0:01:35.2]} 23... Nc5
{[%clk 0:00:43.7]} 24. Bc4 {[%clk 0:01:35.2]} 24... a4 {[%clk 0:00:42.6]} 25.
Bf2 {[%clk 0:01:34.3]} 25... Rfb8 {[%clk 0:00:36.2]} 26. Ra2 {[%clk 0:01:32.2]}
26... Bc8 {[%clk 0:00:35.6]} 27. Bb5 {[%clk 0:01:27]} 27... Ba6 {[%clk
0:00:21.2]} 28. Bxa6 {[%clk 0:01:25.3]} 28... Rxa6 {[%clk 0:00:22.1]} 29. Rea1
{[%clk 0:01:22.1]} 29... Rab6 {[%clk 0:00:22.3]} 30. Nc4 {[%clk 0:01:21.2]}
30... Rb3 {[%clk 0:00:22.6]} 31. Kh2 {[%clk 0:01:14.7]} 31... f5 {[%clk
0:00:18.3]} 32. exf5 {[%clk 0:01:13.2]} 32... R3b5 {[%clk 0:00:16.1]} 33. Ne3
{[%clk 0:01:06.1]} 33... Nb3 {[%clk 0:00:15.4]} 34. Rxa4 {[%clk 0:01:04.7]}
34... Nxa1 {[%clk 0:00:15.3]} 35. Rxa1 {[%clk 0:01:04.3]} 35... Bg5 {[%clk
0:00:15.9]} 36. Ra2 {[%clk 0:01:01.4]} 36... Bxe3 {[%clk 0:00:15.3]} 37. Bxe3
{[%clk 0:01:00]} 37... Rxd5 {[%clk 0:00:15.8]} 38. c4 {[%clk 0:00:55.4]} 38...
Ra5 {[%clk 0:00:14.4]} 39. Rxa5 {[%clk 0:00:47.3]} 39... Qxa5 {[%clk 0:00:15.3]}
40. Qd3 {[%clk 0:00:47.6]} 40... Qc7 {[%clk 0:00:13.2]} 41. f6 {[%clk
0:00:43.6]} 41... gxf6 {[%clk 0:00:13]} 42. Bxh6 {[%clk 0:00:42.6]} 42... Qh7
{[%clk 0:00:10.4]} 43. Qd5+ {[%clk 0:00:36.5]} 43... Kh8 {[%clk 0:00:08.8]} 44.
Qxd6 {[%clk 0:00:31.5]} 44... Qg8 {[%clk 0:00:06.4]} 45. Qxf6+ {[%clk
0:00:29.5]} 45... Kh7 {[%clk 0:00:07]} 46. Bc1 {[%clk 0:00:27.7]} 46... Qg6
{[%clk 0:00:06.9]} 47. Qxe5 {[%clk 0:00:24.2]} 47... Re8 {[%clk 0:00:06.4]} 48.
Qc7+ {[%clk 0:00:21.3]} 48... Kg8 {[%clk 0:00:06.9]} 49. Bf4 {[%clk 0:00:20.3]}
49... Re2 {[%clk 0:00:06.4]} 50. Bg3 {[%clk 0:00:20.7]} 50... Qc2 {[%clk
0:00:06]} 51. Qd8+ {[%clk 0:00:19.5]} 51... Kf7 {[%clk 0:00:06.1]} 52. Qd7+
{[%clk 0:00:19.3]} 52... Kg6 {[%clk 0:00:06.5]} 53. Qg4+ {[%clk 0:00:18.9]}
53... Kf7 {[%clk 0:00:07]} 54. Bd6 {[%clk 0:00:18.1]} 54... Qxb2 {[%clk
0:00:06.4]} 55. c5 {[%clk 0:00:16.6]} 55... Qd2 {[%clk 0:00:06.1]} 56. h4 {[%clk
0:00:16.4]} 56... Qd3 {[%clk 0:00:04.7]} 57. h5 {[%clk 0:00:14.3]} 57... Re4
{[%clk 0:00:04.5]} 58. Qf5+ {[%clk 0:00:13.1]} 58... Ke8 {[%clk 0:00:04.8]} 59.
Qg6+ {[%clk 0:00:10.6]} 59... Kd7 {[%clk 0:00:03.9]} 60. Qf7+ {[%clk 0:00:08.8]}
60... Kc6 {[%clk 0:00:04.3]} 61. Qc7+ {[%clk 0:00:07.9]} 61... Kd5 {[%clk
0:00:04.6]} 62. Qb7+ {[%clk 0:00:07.7]} 62... Ke6 {[%clk 0:00:03.4]} 63. Qe7+
{[%clk 0:00:07.3]} 63... Kd5 {[%clk 0:00:03.9]} 64. Qg5+ {[%clk 0:00:07.4]}
64... Kc6 {[%clk 0:00:04.3]} 65. h6 {[%clk 0:00:07.7]} 65... Qd5 {[%clk
0:00:02.4]} 66. Qxd5+ {[%clk 0:00:07.4]} 66... Kxd5 {[%clk 0:00:03.3]} 67. Kh3
{[%clk 0:00:06.9]} 67... Re1 {[%clk 0:00:03.1]} 68. h7 {[%clk 0:00:06]} 68...
Re8 {[%clk 0:00:03.6]} 69. g4 {[%clk 0:00:02.1]} 69... Rh8 {[%clk 0:00:04.1]}
70. g5 {[%clk 0:00:03]} 70... Rxh7+ {[%clk 0:00:04.7]} 71. Kg4 {[%clk
0:00:03.8]} 71... Rg7 {[%clk 0:00:04.7]} 72. Kf5 {[%clk 0:00:04]} 72... Rf7+
{[%clk 0:00:05.3]} 73. Kg6 {[%clk 0:00:04.3]} 73... Rf1 {[%clk 0:00:05.4]} 74.
Kg7 {[%clk 0:00:04.5]} 74... Rg1 {[%clk 0:00:05.6]} 75. g6 {[%clk 0:00:05]}
75... Rg2 {[%clk 0:00:06.1]} 76. Kf7 {[%clk 0:00:05.2]} 76... Kc6 {[%clk
0:00:06.5]} 77. g7 {[%clk 0:00:05.4]} 77... Rf2+ {[%clk 0:00:07.1]} 78. Kg6
{[%clk 0:00:05.7]} 78... Rg2+ {[%clk 0:00:07.5]} 79. Kf6 {[%clk 0:00:06]} 79...
Rf2+ {[%clk 0:00:07.7]} 80. Ke7 {[%clk 0:00:05.7]} 80... Rg2 {[%clk 0:00:07.8]}
81. Kf8 {[%clk 0:00:04.4]} 81... Rf2+ {[%clk 0:00:08.1]} 82. Kg8 {[%clk
0:00:04.5]} 82... Rg2 {[%clk 0:00:08.4]} 83. Kh7 {[%clk 0:00:04.9]} 83... Rxg7+
{[%clk 0:00:02.6]} 84. Kxg7 {[%clk 0:00:04.9]} 84... Kd5 {[%clk 0:00:03.5]} 85.
Kf6 {[%clk 0:00:05.4]} 1-0

[Event "*** SCC Grand Prix: Titled Tuesday Blitz"]
[Site "Chess.com"]
[Date "2020.06.09"]
[Round "5"]
[White "Papa12341234"]
[Black "Alex_Banzea"]
[Result "0-1"]
[WhiteElo "2584"]
[BlackElo "2444"]
[TimeControl "180+1"]
[EndTime "9:59:06 PDT"]
[Termination "Alex_Banzea won by checkmate"]

1. e4 {[%clk 0:03:00.9]} 1... c6 {[%clk 0:02:59.3]} 2. d4 {[%clk 0:03:00.3]}
2... d5 {[%clk 0:03:00.2]} 3. Nc3 {[%clk 0:03:00.7]} 3... dxe4 {[%clk
0:03:00.1]} 4. Nxe4 {[%clk 0:03:01.6]} 4... Nf6 {[%clk 0:03:00.7]} 5. Ng3 {[%clk
0:03:01.6]} 5... h5 {[%clk 0:02:56.1]} 6. h4 {[%clk 0:03:01.2]} 6... Qc7 {[%clk
0:02:46.2]} 7. Nf3 {[%clk 0:02:57.1]} 7... Bg4 {[%clk 0:02:40.5]} 8. Be2 {[%clk
0:02:56.9]} 8... Nbd7 {[%clk 0:02:40.1]} 9. Ng5 {[%clk 0:02:53.2]} 9... e6
{[%clk 0:02:10.7]} 10. Bxg4 {[%clk 0:02:50.6]} 10... hxg4 {[%clk 0:02:11.6]} 11.
Be3 {[%clk 0:02:45.7]} 11... Bd6 {[%clk 0:02:11.2]} 12. N3e4 {[%clk 0:02:39.1]}
12... Nxe4 {[%clk 0:02:04.7]} 13. Nxe4 {[%clk 0:02:40]} 13... Bf4 {[%clk
0:02:05.3]} 14. Qxg4 {[%clk 0:02:38.5]} 14... Bxe3 {[%clk 0:02:00.9]} 15. fxe3
{[%clk 0:02:39.4]} 15... f5 {[%clk 0:01:46.2]} 16. Qg6+ {[%clk 0:02:37.7]} 16...
Kd8 {[%clk 0:01:35.2]} 17. Qxg7 {[%clk 0:02:15.3]} 17... Re8 {[%clk 0:01:35.3]}
18. Nc3 {[%clk 0:02:12.6]} 18... Qd6 {[%clk 0:01:31.1]} 19. O-O-O {[%clk
0:02:10.3]} 19... Kc7 {[%clk 0:01:31.3]} 20. Qg5 {[%clk 0:01:57.4]} 20... Rg8
{[%clk 0:01:28.3]} 21. Qf4 {[%clk 0:01:57.6]} 21... Rxg2 {[%clk 0:01:24.7]} 22.
Qxd6+ {[%clk 0:01:36.3]} 22... Kxd6 {[%clk 0:01:25.6]} 23. e4 {[%clk 0:01:37.2]}
23... Rh8 {[%clk 0:01:09.3]} 24. Rdf1 {[%clk 0:01:32.1]} 24... Rg4 {[%clk
0:01:00.9]} 25. exf5 {[%clk 0:01:29.3]} 25... exf5 {[%clk 0:00:57.4]} 26. Rxf5
{[%clk 0:01:17.3]} 26... Rhxh4 {[%clk 0:00:48.4]} 27. Rxh4 {[%clk 0:01:18.2]}
27... Rxh4 {[%clk 0:00:49]} 28. Ne2 {[%clk 0:01:12.4]} 28... Ke6 {[%clk
0:00:35.7]} 29. Rf1 {[%clk 0:01:06.7]} 29... Rh2 {[%clk 0:00:34.6]} 30. Kd2
{[%clk 0:01:06.3]} 30... Nb6 {[%clk 0:00:29.8]} 31. Kd3 {[%clk 0:01:04.5]} 31...
Nd5 {[%clk 0:00:26.6]} 32. Nf4+ {[%clk 0:01:01.6]} 32... Nxf4+ {[%clk
0:00:24.6]} 33. Rxf4 {[%clk 0:01:02.5]} 33... Rh3+ {[%clk 0:00:20.6]} 34. Ke2
{[%clk 0:01:01]} 34... Rh2+ {[%clk 0:00:19.5]} 35. Rf2 {[%clk 0:01:01]} 35...
Rh7 {[%clk 0:00:17.7]} 36. Kd2 {[%clk 0:00:57.1]} 36... Kd6 {[%clk 0:00:17.2]}
37. c3 {[%clk 0:00:56]} 37... Kc7 {[%clk 0:00:17.5]} 38. Kd3 {[%clk 0:00:55.6]}
38... Rh3+ {[%clk 0:00:17.5]} 39. Kc4 {[%clk 0:00:54.8]} 39... Rh5 {[%clk
0:00:10.6]} 40. a4 {[%clk 0:00:53]} 40... Rh7 {[%clk 0:00:04.3]} 41. b4 {[%clk
0:00:52.2]} 41... Rg7 {[%clk 0:00:04.4]} 42. Rf6 {[%clk 0:00:51.8]} 42... Rh7
{[%clk 0:00:03.9]} 43. a5 {[%clk 0:00:51.8]} 43... a6 {[%clk 0:00:03.6]} 44. Rg6
{[%clk 0:00:49.4]} 44... Rh5 {[%clk 0:00:03.1]} 45. Rg7+ {[%clk 0:00:48.9]}
45... Kb8 {[%clk 0:00:03.5]} 46. Rd7 {[%clk 0:00:47]} 46... Ka7 {[%clk
0:00:03.9]} 47. d5 {[%clk 0:00:43.2]} 47... cxd5+ {[%clk 0:00:04.8]} 48. Rxd5
{[%clk 0:00:43.4]} 48... Rh4+ {[%clk 0:00:05.2]} 49. Rd4 {[%clk 0:00:43.7]}
49... Rh5 {[%clk 0:00:05.2]} 50. Rd5 {[%clk 0:00:42.9]} 50... Rh4+ {[%clk
0:00:05.1]} 51. Kc5 {[%clk 0:00:43.4]} 51... Rh3 {[%clk 0:00:04.8]} 52. c4
{[%clk 0:00:43.4]} 52... Rh6 {[%clk 0:00:03.5]} 53. Rd6 {[%clk 0:00:42.1]} 53...
Rh5+ {[%clk 0:00:03.3]} 54. Rd5 {[%clk 0:00:42.6]} 54... Rh6 {[%clk 0:00:03.4]}
55. b5 {[%clk 0:00:42.8]} 55... axb5 {[%clk 0:00:03.2]} 56. cxb5 {[%clk
0:00:43.7]} 56... b6+ {[%clk 0:00:02]} 57. axb6+ {[%clk 0:00:35.7]} 57... Rxb6
{[%clk 0:00:02.9]} 58. Rd7+ {[%clk 0:00:27]} 58... Rb7 {[%clk 0:00:03.4]} 59.
b6+ {[%clk 0:00:20.5]} 59... Ka6 {[%clk 0:00:03.4]} 60. Rd1 {[%clk 0:00:18.8]}
60... Rxb6 {[%clk 0:00:02.8]} 61. Ra1+ {[%clk 0:00:17.6]} 61... Kb7 {[%clk
0:00:03.1]} 62. Rf1 {[%clk 0:00:17.8]} 62... Rc6+ {[%clk 0:00:03.5]} 63. Kb5
{[%clk 0:00:18.7]} 63... Rb6+ {[%clk 0:00:04]} 64. Kc5 {[%clk 0:00:19]} 64...
Rc6+ {[%clk 0:00:04.3]} 65. Kd5 {[%clk 0:00:19.9]} 65... Rb6 {[%clk 0:00:04.6]}
66. Rf7+ {[%clk 0:00:19.9]} 66... Ka6 {[%clk 0:00:05.5]} 67. Kc5 {[%clk
0:00:20.3]} 67... Rb5+ {[%clk 0:00:05.7]} 68. Kc4 {[%clk 0:00:20.9]} 68... Rb6
{[%clk 0:00:05.6]} 69. Rf8 {[%clk 0:00:21.3]} 69... Kb7 {[%clk 0:00:04.9]} 70.
Kc5 {[%clk 0:00:21.2]} 70... Rc6+ {[%clk 0:00:05.1]} 71. Kd5 {[%clk 0:00:22.1]}
71... Rc7 {[%clk 0:00:05.6]} 72. Rd8 {[%clk 0:00:21.6]} 72... Re7 {[%clk
0:00:05.3]} 73. Kd6 {[%clk 0:00:21.6]} 73... Rc7 {[%clk 0:00:05.7]} 74. Rh8
{[%clk 0:00:20.1]} 74... Rg7 {[%clk 0:00:05.9]} 75. Rh2 {[%clk 0:00:19.5]} 75...
Kb6 {[%clk 0:00:05.4]} 76. Rb2+ {[%clk 0:00:19.1]} 76... Ka5 {[%clk 0:00:05.8]}
77. Kc5 {[%clk 0:00:19.3]} 77... Rg5+ {[%clk 0:00:06]} 78. Kc4 {[%clk 0:00:20]}
78... Rg4+ {[%clk 0:00:06.3]} 79. Kc5 {[%clk 0:00:20.1]} 79... Rg5+ {[%clk
0:00:06.5]} 80. Kd4 {[%clk 0:00:20.8]} 80... Rg4+ {[%clk 0:00:06.4]} 81. Ke5
{[%clk 0:00:21.2]} 81... Rg5+ {[%clk 0:00:06.7]} 82. Kf4 {[%clk 0:00:21.1]}
82... Rh5 {[%clk 0:00:07]} 83. Rb8 {[%clk 0:00:21.3]} 83... Rb5 {[%clk
0:00:07.2]} 84. Ke4 {[%clk 0:00:21.5]} 84... Rxb8 {[%clk 0:00:07.1]} 85. Kd5
{[%clk 0:00:22]} 85... Kb5 {[%clk 0:00:07.4]} 86. Kd6 {[%clk 0:00:21]} 86... Rc8
{[%clk 0:00:07.5]} 87. Kd7 {[%clk 0:00:21.1]} 87... Rc1 {[%clk 0:00:07.6]} 88.
Kd6 {[%clk 0:00:21.8]} 88... Rc2 {[%clk 0:00:07.7]} 89. Ke5 {[%clk 0:00:22.7]}
89... Kc5 {[%clk 0:00:07.6]} 90. Ke4 {[%clk 0:00:23]} 90... Rd2 {[%clk
0:00:07.6]} 91. Ke3 {[%clk 0:00:22.8]} 91... Rd8 {[%clk 0:00:07.3]} 92. Ke4
{[%clk 0:00:23.7]} 92... Rd7 {[%clk 0:00:07.2]} 93. Ke3 {[%clk 0:00:24.6]} 93...
Kc4 {[%clk 0:00:07.2]} 94. Ke4 {[%clk 0:00:25.5]} 94... Re7+ {[%clk 0:00:07.2]}
95. Kf5 {[%clk 0:00:25.5]} 95... Re1 {[%clk 0:00:07.3]} 96. Kf4 {[%clk
0:00:25.4]} 96... Kd3 {[%clk 0:00:07.7]} 97. Kf3 {[%clk 0:00:26.3]} 97... Rf1+
{[%clk 0:00:07.6]} 98. Kg2 {[%clk 0:00:26.2]} 98... Rf8 {[%clk 0:00:08.5]} 99.
Kg3 {[%clk 0:00:26.3]} 99... Ke4 {[%clk 0:00:08.4]} 100. Kg4 {[%clk 0:00:26.1]}
100... Rg8+ {[%clk 0:00:08.2]} 101. Kh5 {[%clk 0:00:26.7]} 101... Kf5 {[%clk
0:00:07.9]} 102. Kh6 {[%clk 0:00:27]} 102... Rg1 {[%clk 0:00:07.4]} 103. Kh7
{[%clk 0:00:27.9]} 103... Kf6 {[%clk 0:00:07.7]} 104. Kh8 {[%clk 0:00:28.4]}
104... Kf7 {[%clk 0:00:08]} 105. Kh7 {[%clk 0:00:28.3]} 105... Rh1# {[%clk
0:00:08.9]} 0-1

[Event "*** SCC Grand Prix: Titled Tuesday Blitz"]
[Site "Chess.com"]
[Date "2020.06.09"]
[Round "5"]
[White "GoltsevDmitry2000"]
[Black "sergiochess83"]
[Result "0-1"]
[WhiteElo "2624"]
[BlackElo "2833"]
[TimeControl "180+1"]
[EndTime "9:59:07 PDT"]
[Termination "sergiochess83 won on time"]

1. e4 {[%clk 0:03:00.4]} 1... c6 {[%clk 0:02:57.5]} 2. Nf3 {[%clk 0:03:00.7]}
2... d5 {[%clk 0:02:56.9]} 3. exd5 {[%clk 0:03:01]} 3... cxd5 {[%clk 0:02:56.4]}
4. b3 {[%clk 0:02:53.8]} 4... Nc6 {[%clk 0:02:53.5]} 5. Bb2 {[%clk 0:02:54]}
5... Bg4 {[%clk 0:02:51.9]} 6. Be2 {[%clk 0:02:52.8]} 6... e6 {[%clk 0:02:51.2]}
7. h3 {[%clk 0:02:52.4]} 7... Bh5 {[%clk 0:02:40.3]} 8. Ne5 {[%clk 0:02:51.4]}
8... Bxe2 {[%clk 0:02:38.5]} 9. Qxe2 {[%clk 0:02:48.1]} 9... Nf6 {[%clk
0:02:29.6]} 10. O-O {[%clk 0:02:43.8]} 10... Rc8 {[%clk 0:02:26.1]} 11. Nxc6
{[%clk 0:02:06.5]} 11... Rxc6 {[%clk 0:02:24.1]} 12. Qb5 {[%clk 0:01:51.9]}
12... Qc7 {[%clk 0:02:09.7]} 13. Bxf6 {[%clk 0:01:48.1]} 13... gxf6 {[%clk
0:02:09.2]} 14. Re1 {[%clk 0:01:35.7]} 14... Bc5 {[%clk 0:01:48.1]} 15. Nc3
{[%clk 0:01:26.9]} 15... O-O {[%clk 0:01:30.5]} 16. Qd3 {[%clk 0:01:18.6]} 16...
Qf4 {[%clk 0:01:29.9]} 17. Nd1 {[%clk 0:01:05.1]} 17... Rfc8 {[%clk 0:01:20]}
18. c3 {[%clk 0:01:03.3]} 18... f5 {[%clk 0:01:13.4]} 19. Ne3 {[%clk 0:00:58.6]}
19... Bf8 {[%clk 0:01:07.1]} 20. Nf1 {[%clk 0:00:53]} 20... a6 {[%clk
0:00:57.5]} 21. Qg3+ {[%clk 0:00:48.1]} 21... Qxg3 {[%clk 0:00:56.9]} 22. Nxg3
{[%clk 0:00:49]} 22... Bh6 {[%clk 0:00:52.9]} 23. Nf1 {[%clk 0:00:43.2]} 23...
f6 {[%clk 0:00:48.8]} 24. Re2 {[%clk 0:00:36.8]} 24... Kf7 {[%clk 0:00:48.7]}
25. Rae1 {[%clk 0:00:28.1]} 25... b5 {[%clk 0:00:44]} 26. Ne3 {[%clk 0:00:20.2]}
26... a5 {[%clk 0:00:38.6]} 27. Nc2 {[%clk 0:00:19.1]} 27... e5 {[%clk 0:00:35]}
28. b4 {[%clk 0:00:15.2]} 28... Ra8 {[%clk 0:00:25.3]} 29. bxa5 {[%clk
0:00:13.6]} 29... Rxa5 {[%clk 0:00:25.3]} 30. Nb4 {[%clk 0:00:14.2]} 30... Rd6
{[%clk 0:00:25.5]} 31. d4 {[%clk 0:00:08.4]} 31... e4 {[%clk 0:00:20.4]} 32. Rb2
{[%clk 0:00:08.5]} 32... Bg5 {[%clk 0:00:14.3]} 33. Reb1 {[%clk 0:00:07.1]}
33... Ke6 {[%clk 0:00:11.5]} 34. Nc2 {[%clk 0:00:07.3]} 34... Bd2 {[%clk
0:00:08.4]} 35. Rxb5 {[%clk 0:00:06]} 35... Rxa2 {[%clk 0:00:05]} 36. Nb4 {[%clk
0:00:06.2]} 36... Ra4 {[%clk 0:00:05.2]} 37. Rb7 {[%clk 0:00:05.7]} 37... Bxc3
{[%clk 0:00:04.5]} 38. Nc2 {[%clk 0:00:05.5]} 38... f4 {[%clk 0:00:04.9]} 39.
Rxh7 {[%clk 0:00:05.2]} 39... Ra2 {[%clk 0:00:05]} 40. Ne1 {[%clk 0:00:03.7]}
40... Ra1 {[%clk 0:00:03.9]} 41. Rxa1 {[%clk 0:00:03.8]} 41... Bxa1 {[%clk
0:00:04.8]} 42. Nc2 {[%clk 0:00:04.7]} 42... Bc3 {[%clk 0:00:05.4]} 43. Rc7
{[%clk 0:00:05]} 43... Bd2 {[%clk 0:00:05.5]} 44. h4 {[%clk 0:00:04.9]} 44...
Rb6 {[%clk 0:00:04.3]} 45. Kf1 {[%clk 0:00:04.9]} 45... Rb2 {[%clk 0:00:03.9]}
46. Ke2 {[%clk 0:00:04.7]} 46... Ba5 {[%clk 0:00:03.9]} 47. Rc5 {[%clk
0:00:04.1]} 47... Bb6 {[%clk 0:00:03.6]} 48. Rc6+ {[%clk 0:00:04.5]} 48... Kf5
{[%clk 0:00:04]} 49. h5 {[%clk 0:00:04.6]} 49... Bxd4 {[%clk 0:00:03.6]} 50. h6
{[%clk 0:00:03.8]} 50... Be5 {[%clk 0:00:04.3]} 51. h7 {[%clk 0:00:03.8]} 51...
Rb8 {[%clk 0:00:04.2]} 52. Nb4 {[%clk 0:00:03.4]} 52... Rg8 {[%clk 0:00:02.8]}
53. Nxd5 {[%clk 0:00:03.1]} 53... Rh8 {[%clk 0:00:02.6]} 54. f3 {[%clk
0:00:01.7]} 54... exf3+ {[%clk 0:00:02.2]} 55. gxf3 {[%clk 0:00:02.6]} 55...
Rxh7 {[%clk 0:00:03]} 56. Nc3 {[%clk 0:00:03]} 56... Bxc3 {[%clk 0:00:02]} 57.
Rxc3 {[%clk 0:00:03.9]} 57... Re7+ {[%clk 0:00:02.5]} 58. Kf2 {[%clk 0:00:04]}
58... Re5 {[%clk 0:00:03.4]} 59. Rc6 {[%clk 0:00:04.1]} 59... Kg5 {[%clk
0:00:04.3]} 60. Rc4 {[%clk 0:00:04.4]} 60... Kf5 {[%clk 0:00:05.2]} 61. Ra4
{[%clk 0:00:04.9]} 61... Kg5 {[%clk 0:00:06.1]} 62. Rc4 {[%clk 0:00:05.3]} 62...
Rd5 {[%clk 0:00:06.5]} 63. Ra4 {[%clk 0:00:05.5]} 63... Rd2+ {[%clk 0:00:06.7]}
64. Ke1 {[%clk 0:00:06]} 64... Rb2 {[%clk 0:00:07.6]} 65. Ra5+ {[%clk
0:00:06.3]} 65... Kh4 {[%clk 0:00:07.7]} 66. Rf5 {[%clk 0:00:05.2]} 66... Kg3
{[%clk 0:00:07.9]} 67. Rxf6 {[%clk 0:00:04.5]} 67... Kxf3 {[%clk 0:00:08.2]} 68.
Ra6 {[%clk 0:00:02.8]} 68... Rb1+ {[%clk 0:00:07.8]} 69. Kd2 {[%clk 0:00:03.3]}
69... Kf2 {[%clk 0:00:08.7]} 70. Rf6 {[%clk 0:00:03.1]} 70... f3 {[%clk
0:00:09]} 71. Rg6 {[%clk 0:00:03.6]} 71... Rg1 {[%clk 0:00:08.2]} 72. Rf6 {[%clk
0:00:03.1]} 72... Ra1 {[%clk 0:00:08.2]} 73. Rg6 {[%clk 0:00:03]} 73... Kf1
{[%clk 0:00:08.3]} 74. Rf6 {[%clk 0:00:02.2]} 74... f2 {[%clk 0:00:08.7]} 75.
Ke3 {[%clk 0:00:02.4]} 75... Ra3+ {[%clk 0:00:08.5]} 76. Kd2 {[%clk 0:00:02.9]}
76... Ra2+ {[%clk 0:00:08]} 77. Kd1 {[%clk 0:00:03.2]} 77... Ra8 {[%clk
0:00:07.4]} 78. Rg6 {[%clk 0:00:02.2]} 78... Rd8+ {[%clk 0:00:07.2]} 79. Kc2
{[%clk 0:00:02.8]} 79... Rd4 {[%clk 0:00:07.6]} 80. Kc1 {[%clk 0:00:02.9]} 80...
Ke2 {[%clk 0:00:07.2]} 81. Re6+ {[%clk 0:00:02.8]} 81... Kf3 {[%clk 0:00:07.3]}
82. Rf6+ {[%clk 0:00:03.4]} 82... Rf4 {[%clk 0:00:07.5]} 0-1